fUSD/lending_fUSD_20240917
["ID","MTS","AMOUNT","RATE_DAILY","PERIOD"]
[338354582,1726547444620,-280047.975029,0.000139,2]
[338354583,1726547444629,-355.115025,0.000139,2]
[338354584,1726547444639,-355.115025,0.000139,2]
[338354585,1726547444648,-355.115025,0.000139,2]
[338354586,1726547444658,-355.115025,0.000139,2]
[338354587,1726547444666,-527.284761,0.000139,2]
[338354588,1726547444676,-527.284761,0.000139,2]
[338354589,1726547444685,-527.284761,0.000139,2]
[338354590,1726547444695,-527.284761,0.000139,2]
[338354591,1726547444705,-210.981478,0.000139,2]
[338354592,1726547444716,-210.981478,0.000139,2]
[338354593,1726547444725,-210.981478,0.000139,2]
[338354595,1726547444737,-210.981478,0.000139,2]
[338354597,1726547444746,-151.0,0.000139,2]
[338354599,1726547444755,-151.0,0.000139,2]
[338354600,1726547444770,-295.039066,0.000139,2]
[338354602,1726547444782,-295.039066,0.000139,2]
[338354604,1726547444791,-295.039066,0.000139,2]
[338354606,1726547444800,-295.039066,0.000139,2]
[338354608,1726547444809,-151.0,0.000139,2]
[338354610,1726547444819,-151.0,0.000139,2]
[338354612,1726547444829,-151.0,0.000139,2]
[338354614,1726547444838,-151.0,0.000139,2]
[338354615,1726547444848,-151.0,0.000139,2]
[338354616,1726547444857,-260.758963,0.000139,2]
[338354617,1726547444867,-708.50399,0.000139,2]
[338354618,1726547444877,-708.50399,0.000139,2]
[338354619,1726547444888,-708.50399,0.000139,2]
[338354620,1726547444897,-708.50399,0.000139,2]
[338354621,1726547444908,-183.07,0.00013945,2]
[338354622,1726547444917,-500.0,0.0001399,2]
[338354623,1726547444928,-500.0,0.0001399,2]
[338354624,1726547444937,-500.0,0.0001399,2]
[338354625,1726547444947,-500.0,0.0001399,2]
[338354626,1726547444956,-500.0,0.0001399,2]
[338354627,1726547444965,-500.0,0.0001399,2]
[338354628,1726547444975,-500.0,0.0001399,2]
[338354629,1726547444984,-500.0,0.0001399,2]
[338354630,1726547444993,-500.0,0.0001399,2]
[338354631,1726547445003,-500.0,0.0001399,2]
[338354632,1726547445015,-500.0,0.0001399,2]
[338354633,1726547445024,-500.0,0.0001399,2]
[338354634,1726547445034,-500.0,0.0001399,2]
[338354635,1726547445043,-500.0,0.0001399,2]
[338354636,1726547445052,-500.0,0.0001399,2]
[338354638,1726547445061,-500.0,0.0001399,2]
[338354640,1726547445070,-500.0,0.0001399,2]
[338354642,1726547445079,-508.14,0.0001399,2]
[338354644,1726547445089,-500.0,0.0001399,2]
[338354646,1726547445098,-500.0,0.0001399,2]
[338354648,1726547445107,-500.0,0.0001399,2]
[338354649,1726547445116,-500.0,0.0001399,2]
[338354651,1726547445125,-500.0,0.0001399,2]
[338354653,1726547445135,-500.0,0.0001399,2]
[338354655,1726547445144,-500.0,0.0001399,2]
[338354657,1726547445153,-500.0,0.0001399,2]
[338354659,1726547445163,-500.0,0.0001399,2]
[338354661,1726547445171,-494.09,0.0001399,2]
[338354663,1726547445181,-420.0,0.00013996,2]
[338354665,1726547445190,-744.27578867,0.00014,4]
[338354667,1726547445199,-151.0,0.00014,2]
[338354669,1726547445208,-193.920851,0.00014,2]
[338354671,1726547445217,-193.920851,0.00014,2]
[338354673,1726547445226,-151.0,0.00014,2]
[338354675,1726547445235,-219.31859092,0.00014043,2]
[338354677,1726547445244,-766.5,0.00014055,2]
[338354679,1726547445253,-753.08,0.00014055,2]
[338354681,1726547445263,-753.08,0.00014055,2]
[338354683,1726547445272,-753.08,0.00014055,2]
[338354685,1726547445282,-753.08,0.00014055,2]
[338354687,1726547445291,-8451.3148257,0.00014136,2]
[338354689,1726547445300,-178.18,0.00014192,2]
[338354691,1726547445309,-152.36,0.00014192,2]
[338354693,1726547445318,-559.31,0.00014192,2]
[338354695,1726547445328,-219.31859092,0.00014329,2]
[338354697,1726547445340,-202.0,0.0001438,2]
[338354699,1726547445349,-8451.3148257,0.00014391,2]
[338354701,1726547445359,-250.0,0.00014421,2]
[338354703,1726547445368,-524.65391,0.00014421,2]
[338354705,1726547445378,-524.65391,0.00014421,2]
[338354707,1726547445388,-151.0,0.00014421,2]
[338354709,1726547445398,-1865.0,0.00014463,7]
[338354712,1726547445412,-178.389,0.00014476,2]
[338354714,1726547445421,-202.0,0.000145,2]
[338354716,1726547445431,-207.0,0.000145,2]
[338354718,1726547445442,-300.0,0.000145,5]
[338354721,1726547445452,-207.0,0.0001452,2]
[338354723,1726547445461,-300.0,0.000146,5]
[338354725,1726547445472,-215.0,0.0001461,2]
[338354727,1726547445483,-219.31859092,0.00014614,2]
[338354729,1726547445493,-207.0,0.0001463,2]
[338354731,1726547445501,-201.0,0.0001463,2]
[338354733,1726547445511,-202.0,0.0001463,2]
[338354735,1726547445520,-207.0,0.0001463,2]
[338354737,1726547445530,-207.0,0.0001464,2]
[338354739,1726547445540,-151.0,0.00014645,2]
[338354741,1726547445549,-210.981478,0.00014645,2]
[338354743,1726547445558,-210.981478,0.00014645,2]
[338354745,1726547445567,-151.0,0.00014645,2]
[338354747,1726547445577,-151.0,0.00014645,2]
[338354749,1726547445586,-151.0,0.00014645,2]
[338354751,1726547445595,-708.50399,0.00014645,2]
[338354753,1726547445604,-708.50399,0.00014645,2]
[338354755,1726547445613,-8451.3148257,0.00014645,2]
[338354757,1726547445622,-215.0,0.0001468,2]
[338354759,1726547445632,-300.0,0.000147,5]
[338354761,1726547445641,-215.0,0.0001474,2]
[338354763,1726547445650,-201.0,0.0001475,2]
[338354765,1726547445659,-207.0,0.0001475,2]
[338354767,1726547445669,-202.0,0.0001475,2]
[338354769,1726547445678,-201.0,0.0001475,2]
[338354771,1726547445687,-207.0,0.0001475,2]
[338354773,1726547445698,-207.0,0.0001476,2]
[338354775,1726547445708,-177.888848,0.0001476,2]
[338354777,1726547445719,-177.888848,0.0001476,2]
[338354779,1726547445728,-151.0,0.0001476,2]
[338354782,1726547445739,-284.00674175,0.00014775,2]
[338354784,1726547445749,-151.0,0.0001478,2]
[338354786,1726547445759,-151.0,0.0001478,2]
[338354788,1726547445768,-260.868776,0.0001478,2]
[338354790,1726547445779,-264.373959,0.0001478,2]
[338354792,1726547445789,-260.868776,0.0001478,2]
[338354794,1726547445798,-151.0,0.0001478,2]
[338354796,1726547445808,-151.0,0.0001478,2]
[338354798,1726547445818,-151.0,0.0001478,2]
[338354800,1726547445827,-151.0,0.0001478,2]
[338354802,1726547445836,-398.937309,0.0001478,2]
[338354804,1726547445845,-398.937309,0.0001478,2]
[338354805,1726547445854,-505.219601,0.0001478,2]
[338354807,1726547445864,-505.219601,0.0001478,2]
[338354809,1726547445873,-294.044032,0.0001478,2]
[338354811,1726547445883,-294.044032,0.0001478,2]
[338354813,1726547445892,-151.0,0.0001478,2]
[338354815,1726547445902,-151.0,0.0001478,2]
[338354818,1726547445912,-1226.630838,0.0001478,2]
[338354820,1726547445922,-1226.630838,0.0001478,2]
[338354822,1726547445931,-524.65391,0.0001478,2]
[338354823,1726547445940,-524.65391,0.0001478,2]
[338354825,1726547445950,-151.0,0.0001478,2]
[338354828,1726547445961,-256.603943,0.0001478,2]
[338354830,1726547445970,-171.67218,0.0001478,2]
[338354831,1726547445979,-256.603943,0.0001478,2]
[338354834,1726547445990,-151.0,0.0001478,2]
[338354835,1726547445999,-242.210077,0.0001478,2]
[338354837,1726547446008,-206.773716,0.0001478,2]
[338354839,1726547446018,-151.0,0.0001478,2]
[338354841,1726547446027,-153.137329,0.0001478,2]
[338354843,1726547446037,-151.0,0.0001478,2]
[338354845,1726547446046,-151.0,0.0001478,2]
[338354847,1726547446055,-102302.39583142,0.0001478,2]
[338354849,1726547446065,-383.682655,0.0001478,2]
[338354851,1726547446075,-151.0,0.0001478,2]
[338354853,1726547446085,-383.682655,0.0001478,2]
[338354855,1726547446094,-355.115025,0.0001478,2]
[338354858,1726547446103,-355.115025,0.0001478,2]
[338354859,1726547446113,-527.284761,0.0001478,2]
[338354861,1726547446122,-527.284761,0.0001478,2]
[338354863,1726547446131,-210.981478,0.0001478,2]
[338354865,1726547446140,-210.981478,0.0001478,2]
[338354868,1726547446150,-151.0,0.0001478,2]
[338354870,1726547446159,-295.039066,0.0001478,2]
[338354871,1726547446168,-295.039066,0.0001478,2]
[338354873,1726547446177,-151.0,0.0001478,2]
[338354876,1726547446187,-151.0,0.0001478,2]
[338354878,1726547446197,-708.50399,0.0001478,2]
[338354880,1726547446206,-708.50399,0.0001478,2]
[338354882,1726547446217,-152.850891,0.000148,2]
[338354884,1726547446228,-151.0,0.000148,2]
[338354886,1726547446239,-5613.61614536,0.000148,2]
[338354888,1726547446249,-771.0,0.000148,5]
[338354891,1726547446259,-216.0,0.0001481,2]
[338354893,1726547446269,-215.0,0.0001481,2]
[338354895,1726547446278,-493.19378236,0.00014815,2]
[338354897,1726547446287,-151.0,0.00014834,2]
[338354899,1726547446297,-295.854493,0.00014834,2]
[338354901,1726547446307,-151.0,0.00014834,2]
[338354903,1726547446316,-151.0,0.00014834,2]
[338354905,1726547446325,-151.0,0.00014834,2]
[338354907,1726547446334,-227.667954,0.00014834,2]
[338354908,1726547446343,-151.0,0.00014834,2]
[338354911,1726547446352,-151.0,0.00014834,2]
[338354913,1726547446362,-151.0,0.00014834,2]
[338354915,1726547446372,-151.0,0.00014834,2]
[338354917,1726547446383,-151.0,0.00014834,2]
[338354919,1726547446393,-151.0,0.00014834,2]
[338354921,1726547446402,-151.0,0.00014834,2]
[338354923,1726547446413,-151.0,0.00014834,2]
[338354925,1726547446423,-151.183354,0.00014834,2]
[338354927,1726547446432,-151.0,0.00014834,2]
[338354929,1726547446441,-193.920851,0.00014834,2]
[338354931,1726547446450,-193.920851,0.00014834,2]
[338354933,1726547446459,-151.0,0.00014834,2]
[338354935,1726547446468,-151.0,0.00014834,2]
[338354937,1726547446478,-5971.24752842,0.00014834,2]
[338354939,1726547446487,-357.7563111,0.00014869,2]
[338354941,1726547446496,-216.0,0.0001487,2]
[338354943,1726547446505,-215.0,0.0001487,2]
[338354945,1726547446515,-500.0,0.0001487,2]
[338354947,1726547446525,-207.0,0.0001488,2]
[338354949,1726547446534,-201.0,0.0001488,2]
[338354951,1726547446544,-201.0,0.0001488,2]
[338354953,1726547446553,-207.0,0.0001488,2]
[338354955,1726547446562,-201.0,0.0001488,2]
[338354957,1726547446571,-202.0,0.0001488,2]
[338354959,1726547446580,-207.0,0.0001488,2]
[338354961,1726547446589,-150.0,0.00014893,2]
[338354963,1726547446599,-1972.23,0.000149,6]
[338354965,1726547446608,-500.6029051,0.000149,4]
[338354967,1726547446617,-232.0,0.000149,5]
[338354969,1726547446626,-5800.0,0.000149,2]
[338354971,1726547446635,-177.888848,0.000149,2]
[338354973,1726547446644,-177.888848,0.000149,2]
[338354975,1726547446653,-151.0,0.000149,2]
[338354977,1726547446662,-219.31859092,0.000149,2]
[338354979,1726547446671,-8451.3148257,0.000149,2]
[338354981,1726547446679,-152.77667289,0.000149,2]
[338354983,1726547446689,-216.0,0.0001493,2]
[338354985,1726547446698,-215.0,0.0001493,2]
[338354986,1726547446707,-150.0,0.00014944,2]
[338354988,1726547446716,-350.0,0.00014968,2]
[338354990,1726547446725,-150.145,0.0001498,2]
[338354992,1726547446735,-450.23020649,0.0001498,2]
[338354994,1726547446744,-151.0,0.0001498,2]
[338354996,1726547446753,-151.0,0.0001498,2]
[338354998,1726547446762,-208.0,0.0001499,2]
[338355000,1726547446772,-207.0,0.0001499,2]
[338355002,1726547446782,-201.0,0.0001499,2]
[338355005,1726547446791,-216.0,0.0001499,2]
[338355007,1726547446801,-201.0,0.0001499,2]
[338355009,1726547446810,-207.0,0.0001499,2]
[338355010,1726547446819,-215.0,0.0001499,2]
[338355013,1726547446829,-216.0,0.0001499,2]
[338355015,1726547446839,-201.0,0.0001499,2]
[338355017,1726547446848,-202.0,0.0001499,2]
[338355019,1726547446858,-207.0,0.0001499,2]
[338355021,1726547446868,-298.013399,0.0001499,2]
[338355023,1726547446878,-193.920851,0.0001499,2]
[338355025,1726547446887,-193.920851,0.0001499,2]
[338355027,1726547446896,-160.990358,0.0001499,2]
[338355029,1726547446905,-151.0,0.0001499,2]
[338355031,1726547446915,-151.0,0.0001499,2]
[338355032,1726547446925,-151.0,0.0001499,2]
[338355033,1726547446935,-151.0,0.0001499,2]
[338355034,1726547446944,-260.868776,0.0001499,2]
[338355035,1726547446953,-260.868776,0.0001499,2]
[338355036,1726547446962,-260.868776,0.0001499,2]
[338355037,1726547446973,-260.868776,0.0001499,2]
[338355038,1726547446982,-260.868776,0.0001499,2]
[338355039,1726547446991,-260.868776,0.0001499,2]
[338355040,1726547447000,-260.868776,0.0001499,2]
[338355041,1726547447009,-260.868776,0.0001499,2]
[338355042,1726547447018,-151.0,0.0001499,2]
[338355043,1726547447028,-151.0,0.0001499,2]
[338355044,1726547447037,-151.0,0.0001499,2]
[338355045,1726547447049,-151.0,0.0001499,2]
[338355046,1726547447059,-151.0,0.0001499,2]
[338355047,1726547447069,-151.0,0.0001499,2]
[338355048,1726547447079,-151.0,0.0001499,2]
[338355049,1726547447089,-249.675615,0.0001499,2]
[338355050,1726547447099,-151.0,0.0001499,2]
[338355051,1726547447108,-151.0,0.0001499,2]
[338355052,1726547447117,-151.0,0.0001499,2]
[338355053,1726547447126,-179.402009,0.0001499,2]
[338355054,1726547447136,-157.754733,0.0001499,2]
[338355055,1726547447145,-398.937309,0.0001499,2]
[338355056,1726547447154,-398.937309,0.0001499,2]
[338355057,1726547447163,-398.937309,0.0001499,2]
[338355058,1726547447173,-398.937309,0.0001499,2]
[338355059,1726547447182,-398.937309,0.0001499,2]
[338355060,1726547447320,-398.937309,0.0001499,2]
[338355061,1726547447330,-398.937309,0.0001499,2]
[338355062,1726547447341,-398.937309,0.0001499,2]
[338355063,1726547447350,-398.937309,0.0001499,2]
[338355064,1726547447359,-398.937314,0.0001499,2]
[338355065,1726547447368,-505.219601,0.0001499,2]
[338355066,1726547447378,-505.219601,0.0001499,2]
[338355067,1726547447387,-505.219601,0.0001499,2]
[338355068,1726547447397,-505.219601,0.0001499,2]
[338355069,1726547447406,-505.219601,0.0001499,2]
[338355070,1726547447415,-505.219601,0.0001499,2]
[338355071,1726547447424,-294.044032,0.0001499,2]
[338355072,1726547447436,-505.219601,0.0001499,2]
[338355073,1726547447445,-294.044032,0.0001499,2]
[338355074,1726547447454,-505.219601,0.0001499,2]
[338355075,1726547447463,-294.044032,0.0001499,2]
[338355076,1726547447472,-505.219601,0.0001499,2]
[338355077,1726547447481,-294.044032,0.0001499,2]
[338355078,1726547447490,-505.219593,0.0001499,2]
[338355079,1726547447499,-294.044032,0.0001499,2]
[338355080,1726547447508,-294.044032,0.0001499,2]
[338355081,1726547447518,-294.044032,0.0001499,2]
[338355082,1726547447527,-294.044032,0.0001499,2]
[338355083,1726547447536,-294.044032,0.0001499,2]
[338355084,1726547447545,-294.044042,0.0001499,2]
[338355085,1726547447554,-151.0,0.0001499,2]
[338355086,1726547447563,-151.0,0.0001499,2]
[338355087,1726547447573,-151.0,0.0001499,2]
[338355088,1726547447582,-151.0,0.0001499,2]
[338355089,1726547447591,-151.0,0.0001499,2]
[338355090,1726547447600,-158.737732,0.0001499,2]
[338355092,1726547447610,-177.888848,0.0001499,2]
[338355094,1726547447619,-177.888848,0.0001499,2]
[338355095,1726547447628,-177.888848,0.0001499,2]
[338355096,1726547447637,-177.888848,0.0001499,2]
[338355097,1726547447647,-177.888848,0.0001499,2]
[338355098,1726547447657,-177.888848,0.0001499,2]
[338355099,1726547447669,-177.888848,0.0001499,2]
[338355100,1726547447678,-177.888846,0.0001499,2]
[338355101,1726547447688,-151.0,0.0001499,2]
[338355102,1726547447697,-151.0,0.0001499,2]
[338355103,1726547447710,-151.0,0.0001499,2]
[338355104,1726547447719,-151.0,0.0001499,2]
[338355105,1726547447728,-1226.630838,0.0001499,2]
[338355106,1726547447739,-1226.630838,0.0001499,2]
[338355107,1726547447749,-1226.630838,0.0001499,2]
[338355108,1726547447759,-1226.630838,0.0001499,2]
[338355109,1726547447769,-1226.630838,0.0001499,2]
[338355110,1726547447779,-1226.630838,0.0001499,2]
[338355111,1726547447789,-1226.630838,0.0001499,2]
[338355112,1726547447800,-1226.630838,0.0001499,2]
[338355113,1726547447809,-1226.630838,0.0001499,2]
[338355114,1726547447818,-1226.630838,0.0001499,2]
[338355115,1726547447827,-151.0,0.0001499,2]
[338355116,1726547447837,-151.0,0.0001499,2]
[338355117,1726547447846,-151.0,0.0001499,2]
[338355118,1726547447855,-217.704231,0.0001499,2]
[338355119,1726547447864,-524.65391,0.0001499,2]
[338355120,1726547447874,-524.65391,0.0001499,2]
[338355121,1726547447885,-524.65391,0.0001499,2]
[338355122,1726547447896,-524.65391,0.0001499,2]
[338355123,1726547447905,-524.65391,0.0001499,2]
[338355124,1726547447915,-524.6539,0.0001499,2]
[338355125,1726547447925,-276.916026,0.0001499,2]
[338355126,1726547447936,-47371.6826643,0.0001499,2]
[338355127,1726547447945,-40185.0624918,0.0001499,2]
[338355128,1726547447955,-32998.4423194,0.0001499,2]
[338355129,1726547447966,-25811.8221469,0.0001499,2]
[338355130,1726547447977,-18625.2019744,0.0001499,2]
[338355131,1726547447988,-256.603943,0.0001499,2]
[338355132,1726547447998,-256.603943,0.0001499,2]
[338355133,1726547448008,-256.603943,0.0001499,2]
[338355134,1726547448018,-256.603943,0.0001499,2]
[338355135,1726547448035,-256.603943,0.0001499,2]
[338355136,1726547448045,-256.603943,0.0001499,2]
[338355137,1726547448054,-256.603943,0.0001499,2]
[338355138,1726547448063,-256.603943,0.0001499,2]
[338355139,1726547448073,-151.0,0.0001499,2]
[338355140,1726547448082,-151.0,0.0001499,2]
[338355141,1726547448091,-151.0,0.0001499,2]
[338355142,1726547448100,-151.0,0.0001499,2]
[338355143,1726547448109,-151.0,0.0001499,2]
[338355144,1726547448118,-151.0,0.0001499,2]
[338355145,1726547448128,-151.0,0.0001499,2]
[338355146,1726547448137,-151.0,0.0001499,2]
[338355147,1726547448146,-153.270593,0.0001499,2]
[338355148,1726547448155,-222.749244,0.0001499,2]
[338355149,1726547448164,-383.682655,0.0001499,2]
[338355150,1726547448173,-383.682655,0.0001499,2]
[338355151,1726547448183,-383.682655,0.0001499,2]
[338355152,1726547448192,-383.682655,0.0001499,2]
[338355153,1726547448202,-383.682655,0.0001499,2]
[338355154,1726547448211,-151.0,0.0001499,2]
[338355155,1726547448221,-151.0,0.0001499,2]
[338355156,1726547448230,-151.0,0.0001499,2]
[338355157,1726547448240,-151.0,0.0001499,2]
[338355158,1726547448249,-383.682655,0.0001499,2]
[338355159,1726547448259,-383.682655,0.0001499,2]
[338355160,1726547448269,-383.682655,0.0001499,2]
[338355161,1726547448279,-383.682655,0.0001499,2]
[338355162,1726547448288,-383.682664,0.0001499,2]
[338355163,1726547448297,-6181.5675427,0.0001499,2]
[338355164,1726547448306,-5262.7767557,0.0001499,2]
[338355165,1726547448316,-4343.9859687,0.0001499,2]
[338355166,1726547448324,-3425.1951818,0.0001499,2]
[338355167,1726547448334,-2506.4043948,0.0001499,2]
[338355168,1726547448343,-20114.147885,0.0001499,2]
[338355169,1726547448352,-17133.254445,0.0001499,2]
[338355170,1726547448361,-14152.3610049,0.0001499,2]
[338355171,1726547448370,-11171.4675648,0.0001499,2]
[338355172,1726547448379,-8190.5741248,0.0001499,2]
[338355173,1726547448389,-355.115025,0.0001499,2]
[338355174,1726547448398,-355.115025,0.0001499,2]
[338355175,1726547448407,-355.115025,0.0001499,2]
[338355176,1726547448416,-355.115025,0.0001499,2]
[338355177,1726547448426,-355.115025,0.0001499,2]
[338355178,1726547448435,-355.115025,0.0001499,2]
[338355179,1726547448444,-355.115025,0.0001499,2]
[338355180,1726547448454,-355.115026,0.0001499,2]
[338355181,1726547448464,-527.284761,0.0001499,2]
[338355182,1726547448472,-527.284761,0.0001499,2]
[338355183,1726547448482,-527.284761,0.0001499,2]
[338355184,1726547448491,-527.284761,0.0001499,2]
[338355185,1726547448501,-527.284761,0.0001499,2]
[338355186,1726547448510,-527.284761,0.0001499,2]
[338355187,1726547448520,-527.284761,0.0001499,2]
[338355188,1726547448530,-527.284768,0.0001499,2]
[338355189,1726547448539,-210.981478,0.0001499,2]
[338355190,1726547448548,-210.981478,0.0001499,2]
[338355191,1726547448557,-210.981478,0.0001499,2]
[338355192,1726547448566,-210.981478,0.0001499,2]
[338355193,1726547448575,-210.981478,0.0001499,2]
[338355194,1726547448584,-210.981472,0.0001499,2]
[338355195,1726547448593,-151.0,0.0001499,2]
[338355196,1726547448603,-232.541022,0.0001499,2]
[338355197,1726547448612,-3906.1442295,0.0001499,2]
[338355198,1726547448622,-3334.2754473,0.0001499,2]
[338355199,1726547448631,-2762.4066651,0.0001499,2]
[338355200,1726547448640,-2190.537883,0.0001499,2]
[338355201,1726547448650,-1618.6691008,0.0001499,2]
[338355202,1726547448660,-295.039066,0.0001499,2]
[338355203,1726547448669,-295.039066,0.0001499,2]
[338355204,1726547448678,-295.039066,0.0001499,2]
[338355205,1726547448687,-295.039066,0.0001499,2]
[338355206,1726547448696,-295.039066,0.0001499,2]
[338355207,1726547448706,-295.039066,0.0001499,2]
[338355208,1726547448715,-295.039066,0.0001499,2]
[338355209,1726547448725,-3760.0298762,0.0001499,2]
[338355210,1726547448734,-3216.1698841,0.0001499,2]
[338355211,1726547448743,-151.0,0.0001499,2]
[338355212,1726547448753,-2672.3098919,0.0001499,2]
[338355213,1726547448763,-295.039066,0.0001499,2]
[338355214,1726547448776,-2128.4498998,0.0001499,2]
[338355215,1726547448785,-1584.5899077,0.0001499,2]
[338355216,1726547448794,-151.0,0.0001499,2]
[338355217,1726547448803,-295.039066,0.0001499,2]
[338355218,1726547448813,-295.039074,0.0001499,2]
[338355219,1726547448823,-151.0,0.0001499,2]
[338355220,1726547448832,-291.331663,0.0001499,2]
[338355221,1726547448842,-708.50399,0.0001499,2]
[338355222,1726547448852,-708.50399,0.0001499,2]
[338355223,1726547448862,-708.50399,0.0001499,2]
[338355224,1726547448871,-708.50399,0.0001499,2]
[338355225,1726547448881,-708.50399,0.0001499,2]
[338355226,1726547448890,-708.503983,0.0001499,2]
[338355227,1726547448900,-333.0,0.00014999,2]
[338355228,1726547448909,-2269.25572884,0.00014999,2]
[338355229,1726547448919,-2635668.98629565,0.00015,2]
[338355230,1726547448943,-51832.92783422,0.00015,2]
[338355231,1726547450902,-2669.528679,0.00013627,2]
[338355232,1726547450912,-942.177,0.00013783,2]
[338355233,1726547450922,-2669.528679,0.00013796,2]
[338355234,1726547450932,-2669.528679,0.000138,2]
[338355235,1726547450941,-2669.528679,0.000138,2]
[338355236,1726547450951,-2669.528679,0.000139,2]
[338355237,1726547450960,-2669.528679,0.000139,2]
[338355238,1726547450970,-2669.528679,0.000139,2]
[338355239,1726547450980,-2669.528679,0.0001478,2]
[338355240,1726547450989,-2669.528679,0.0001478,2]
[338355241,1726547450999,-2669.528679,0.0001499,2]
[338355242,1726547451008,-2669.528679,0.0001499,2]
[338355243,1726547451018,-2669.528679,0.0001499,2]
[338355244,1726547451027,-93393.6101136,0.00015,2]
[338355246,1726547602392,500.0,0.00024733,120]
[338355247,1726547603000,500.0,0.00025333,120]
[338355248,1726547603481,500.0,0.00025933,120]
[338355249,1726547606830,2000.0,0.00024921,120]
[338355250,1726547607251,2000.0,0.00025783,120]
[338355251,1726547630194,500.0,0.00024801,120]
[338355252,1726547639061,500.0,0.00025633,120]
[338355258,1726547859886,311.14,0.00011579,2]
[338355259,1726547954371,2055.0,0.00025999,120]
[338355260,1726548040198,172.93,0.00010959,2]
[338355261,1726548114922,28820.13131232,0.00025,60]
[338355266,1726548202598,325.268852,0.00026,120]
[338355267,1726548205655,2000.0,0.00026,120]
[338355268,1726548226888,500.0,0.00026,120]
[338355269,1726548234056,500.0,0.00026,120]
[338355270,1726548245331,200.0,0.00026,120]
[338355274,1726548405850,310.46,0.00011386,2]
[338355279,1726548546913,152.49,0.00010959,2]
[338355383,1726548631759,-295.13,0.00013,2]
[338355384,1726548631769,-158.82,0.00013174,2]
[338355385,1726548631779,-314.68,0.00013184,2]
[338355386,1726548631789,-292.34,0.00013228,2]
[338355387,1726548631799,-188.15,0.00013258,2]
[338355388,1726548631808,-520.85736906,0.00013282,2]
[338355389,1726548631817,-1882.26,0.00013282,2]
[338355390,1726548631827,-200.0,0.0001329,2]
[338355391,1726548631836,-250.0,0.00013304,2]
[338355392,1726548631846,-300.0,0.00013307,2]
[338355393,1726548631855,-716.08699064,0.00013308,2]
[338355394,1726548631867,-1752.99828896,0.00013308,2]
[338355395,1726548631933,-7535.6147204,0.00013308,2]
[338355396,1726548631943,-250.0,0.0001331,2]
[338355397,1726548631952,-161.68,0.0001333,2]
[338355398,1726548631963,-161.68,0.00013352,2]
[338355399,1726548631973,-161.68,0.00013375,2]
[338355400,1726548631983,-161.68,0.00013397,2]
[338355401,1726548631993,-442.56,0.00013398,2]
[338355402,1726548632002,-172.93,0.00013403,2]
[338355403,1726548632012,-150.0,0.00013589,2]
[338355404,1726548632022,-151.0,0.00013627,2]
[338355405,1726548632032,-151.0,0.00013627,2]
[338355406,1726548632042,-151.0,0.00013627,2]
[338355407,1726548632052,-310.46,0.0001365,2]
[338355408,1726548632061,-801.199,0.00013783,2]
[338355409,1726548632071,-170.147,0.00013783,2]
[338355410,1726548632083,-681.888,0.00013783,2]
[338355411,1726548632093,-151.0,0.00013796,2]
[338355412,1726548632103,-151.0,0.00013796,2]